[Event "*** Titled Tuesday Blitz"]
[Site "Chess.com"]
[Date "2020.02.04"]
[Round "7"]
[White "novocane"]
[Black "kallerotmg"]
[Result "1-0"]
[WhiteElo "2137"]
[BlackElo "2079"]
[TimeControl "180+2"]
[EndTime "14:32:39 PST"]
[Termination "novocane won by resignation"]

1. d4 {[%clk 0:03:01.8]} 1... Nf6 {[%clk 0:00:26.9]} 2. c4 {[%clk 0:02:54.7]}
2... e6 {[%clk 0:00:27.3]} 3. Nc3 {[%clk 0:02:55.2]} 3... Bb4 {[%clk 0:00:28.2]}
4. e3 {[%clk 0:02:54.8]} 4... b6 {[%clk 0:00:28.7]} 5. Ne2 {[%clk 0:02:54.9]}
5... Bb7 {[%clk 0:00:29.8]} 6. a3 {[%clk 0:02:55]} 6... Be7 {[%clk 0:00:25]} 7.
d5 {[%clk 0:02:54.8]} 7... O-O {[%clk 0:00:19.7]} 8. Ng3 {[%clk 0:02:53.4]} 8...
d6 {[%clk 0:00:20.4]} 9. Be2 {[%clk 0:02:53.2]} 9... exd5 {[%clk 0:00:20.4]} 10.
cxd5 {[%clk 0:02:54.2]} 10... Re8 {[%clk 0:00:20.7]} 11. O-O {[%clk 0:02:54.9]}
11... Nbd7 {[%clk 0:00:21]} 12. e4 {[%clk 0:02:53.7]} 12... Bf8 {[%clk 0:00:22]}
13. f3 {[%clk 0:02:47.8]} 13... g6 {[%clk 0:00:21.6]} 14. Nh1 {[%clk 0:02:43.6]}
14... Bg7 {[%clk 0:00:22.9]} 15. Nf2 {[%clk 0:02:44.7]} 15... a5 {[%clk
0:00:20.4]} 16. Be3 {[%clk 0:02:41.3]} 16... Nc5 {[%clk 0:00:21.4]} 17. b4
{[%clk 0:02:24]} 17... axb4 {[%clk 0:00:21.5]} 18. axb4 {[%clk 0:02:25.1]} 18...
Rxa1 {[%clk 0:00:22.9]} 19. Qxa1 {[%clk 0:02:27]} 19... Nfxe4 {[%clk 0:00:24]}
20. fxe4 {[%clk 0:01:35.1]} 20... Nxe4 {[%clk 0:00:20.9]} 21. Nfxe4 {[%clk
0:01:24.9]} 21... Rxe4 {[%clk 0:00:17.8]} 22. Qc1 {[%clk 0:00:56.2]} 22... Rxb4
{[%clk 0:00:17.6]} 23. Bh6 {[%clk 0:00:40]} 23... Qe7 {[%clk 0:00:16.5]} 24.
Bxg7 {[%clk 0:00:38.3]} 24... Kxg7 {[%clk 0:00:18.4]} 25. Bf3 {[%clk 0:00:37.6]}
25... Ba6 {[%clk 0:00:17.2]} 26. Re1 {[%clk 0:00:38.1]} 26... Qf6 {[%clk
0:00:18.2]} 27. Ne4 {[%clk 0:00:36.2]} 27... Qd4+ {[%clk 0:00:18.1]} 28. Kh1
{[%clk 0:00:16.2]} 28... Rc4 {[%clk 0:00:18.9]} 29. Qa1 {[%clk 0:00:14.5]} 29...
Bb7 {[%clk 0:00:18.2]} 30. Qxd4+ {[%clk 0:00:12.7]} 30... Rxd4 {[%clk
0:00:20.1]} 31. Nc3 {[%clk 0:00:12.5]} 31... Rd3 {[%clk 0:00:20]} 32. Rc1 {[%clk
0:00:12.5]} 32... g5 {[%clk 0:00:17.2]} 33. h3 {[%clk 0:00:12.7]} 33... Bc8
{[%clk 0:00:13.9]} 34. Ne4 {[%clk 0:00:10.2]} 34... h6 {[%clk 0:00:12.5]} 35.
Rxc7 {[%clk 0:00:06.3]} 35... Bf5 {[%clk 0:00:13.9]} 36. Nxd6 {[%clk 0:00:06.8]}
36... Rd1+ {[%clk 0:00:15.4]} 37. Bxd1 {[%clk 0:00:07.6]} 1-0

[Event "*** Titled Tuesday Blitz"]
[Site "Chess.com"]
[Date "2020.02.04"]
[Round "7"]
[White "EugeneRougon"]
[Black "Region_07"]
[Result "1-0"]
[WhiteElo "2718"]
[BlackElo "2493"]
[TimeControl "180+2"]
[EndTime "14:32:47 PST"]
[Termination "EugeneRougon won on time"]

1. e4 {[%clk 0:03:01.9]} 1... Nc6 {[%clk 0:02:59.5]} 2. Nf3 {[%clk 0:03:02.5]}
2... d6 {[%clk 0:02:59.9]} 3. Bb5 {[%clk 0:03:04.1]} 3... Nf6 {[%clk 0:03:00.3]}
4. Nc3 {[%clk 0:03:04.7]} 4... a6 {[%clk 0:02:55.4]} 5. Bxc6+ {[%clk 0:03:05.6]}
5... bxc6 {[%clk 0:02:57.3]} 6. h3 {[%clk 0:03:05.5]} 6... g6 {[%clk 0:02:58.1]}
7. O-O {[%clk 0:03:06.1]} 7... Bg7 {[%clk 0:02:59.5]} 8. d4 {[%clk 0:03:06]}
8... O-O {[%clk 0:03:00]} 9. Be3 {[%clk 0:03:07.2]} 9... Rb8 {[%clk 0:03:00.2]}
10. Rb1 {[%clk 0:03:06.7]} 10... Nd7 {[%clk 0:02:52.3]} 11. Qd2 {[%clk
0:03:05.7]} 11... e5 {[%clk 0:02:50.7]} 12. Bh6 {[%clk 0:03:00.3]} 12... Qe7
{[%clk 0:02:25.3]} 13. Bxg7 {[%clk 0:02:53.6]} 13... Kxg7 {[%clk 0:02:27.2]} 14.
dxe5 {[%clk 0:02:51]} 14... Nxe5 {[%clk 0:02:26.8]} 15. Nxe5 {[%clk 0:02:42.2]}
15... dxe5 {[%clk 0:02:15.8]} 16. Qe3 {[%clk 0:02:24]} 16... Rd8 {[%clk
0:02:14.2]} 17. b3 {[%clk 0:02:20.8]} 17... Be6 {[%clk 0:02:11]} 18. Na4 {[%clk
0:02:18.9]} 18... Qd6 {[%clk 0:01:32.2]} 19. Qc3 {[%clk 0:01:51.4]} 19... Rb5
{[%clk 0:01:24]} 20. Rbe1 {[%clk 0:01:17.4]} 20... c5 {[%clk 0:01:20.8]} 21. Rd1
{[%clk 0:01:02.5]} 21... Qxd1 {[%clk 0:01:12.4]} 22. Rxd1 {[%clk 0:01:04.4]}
22... Rxd1+ {[%clk 0:01:13.2]} 23. Kh2 {[%clk 0:01:06.1]} 23... c4 {[%clk
0:00:53.5]} 24. b4 {[%clk 0:01:06.3]} 24... f6 {[%clk 0:00:46.4]} 25. Nc5 {[%clk
0:01:03.4]} 25... Bf7 {[%clk 0:00:37.5]} 26. Nxa6 {[%clk 0:01:04]} 26... Rb6
{[%clk 0:00:26.2]} 27. Nc5 {[%clk 0:00:44.7]} 27... Rbd6 {[%clk 0:00:25]} 28. a4
{[%clk 0:00:45.6]} 28... R6d2 {[%clk 0:00:25.3]} 29. Kg3 {[%clk 0:00:32.5]}
29... Re2 {[%clk 0:00:20.2]} 30. a5 {[%clk 0:00:17.2]} 30... Rdd2 {[%clk
0:00:21.2]} 31. Qf3 {[%clk 0:00:13.8]} 31... Rxc2 {[%clk 0:00:21.9]} 32. a6
{[%clk 0:00:13.9]} 32... Ra2 {[%clk 0:00:22.6]} 33. Nd7 {[%clk 0:00:12.4]} 33...
f5 {[%clk 0:00:10.9]} 34. exf5 {[%clk 0:00:13.4]} 34... e4 {[%clk 0:00:08.7]}
35. f6+ {[%clk 0:00:13.2]} 35... Kg8 {[%clk 0:00:07.6]} 36. Qf4 {[%clk 0:00:14]}
36... Rxa6 {[%clk 0:00:02.9]} 37. Qh6 {[%clk 0:00:11.2]} 1-0

[Event "*** Titled Tuesday Blitz"]
[Site "Chess.com"]
[Date "2020.02.04"]
[Round "7"]
[White "MatthewG-p4p"]
[Black "OparinGrigoriy"]
[Result "1-0"]
[WhiteElo "2839"]
[BlackElo "3022"]
[TimeControl "180+2"]
[EndTime "14:32:52 PST"]
[Termination "MatthewG-p4p won by resignation"]

1. f4 {[%clk 0:03:01.9]} 1... c5 {[%clk 0:02:59.2]} 2. Nf3 {[%clk 0:03:03.2]}
2... Nf6 {[%clk 0:02:59.7]} 3. g3 {[%clk 0:03:04.8]} 3... e6 {[%clk 0:03:00]} 4.
Bg2 {[%clk 0:03:06.4]} 4... d5 {[%clk 0:03:01.6]} 5. O-O {[%clk 0:03:08.3]} 5...
Nc6 {[%clk 0:03:02.5]} 6. d3 {[%clk 0:03:10]} 6... Be7 {[%clk 0:03:02.9]} 7. Nc3
{[%clk 0:03:10.9]} 7... O-O {[%clk 0:03:02.9]} 8. e4 {[%clk 0:03:12.1]} 8... b6
{[%clk 0:02:47.2]} 9. Ne5 {[%clk 0:03:04.6]} 9... Bb7 {[%clk 0:02:42.8]} 10. Ng4
{[%clk 0:02:55]} 10... Nxg4 {[%clk 0:02:24.1]} 11. Qxg4 {[%clk 0:02:56.9]} 11...
dxe4 {[%clk 0:02:24.3]} 12. dxe4 {[%clk 0:02:57.1]} 12... Nd4 {[%clk 0:02:23.2]}
13. Rf2 {[%clk 0:02:53.6]} 13... b5 {[%clk 0:02:12]} 14. Be3 {[%clk 0:02:24.1]}
14... b4 {[%clk 0:02:12]} 15. Nd1 {[%clk 0:02:24.9]} 15... f5 {[%clk 0:02:05.1]}
16. Qh3 {[%clk 0:02:24.4]} 16... fxe4 {[%clk 0:01:49.2]} 17. Bxd4 {[%clk
0:02:18.4]} 17... Qxd4 {[%clk 0:01:51.1]} 18. Qxe6+ {[%clk 0:02:18.2]} 18... Rf7
{[%clk 0:01:52.6]} 19. c3 {[%clk 0:02:17.2]} 19... Qd3 {[%clk 0:01:52.6]} 20.
Bf1 {[%clk 0:02:14.5]} 20... Qd5 {[%clk 0:01:16.5]} 21. Bc4 {[%clk 0:02:12]}
21... Qxe6 {[%clk 0:01:17.8]} 22. Bxe6 {[%clk 0:02:13.9]} 22... Kf8 {[%clk
0:01:19.5]} 23. Bxf7 {[%clk 0:02:14.5]} 23... Kxf7 {[%clk 0:01:21.4]} 24. Ne3
{[%clk 0:02:11.3]} 24... Bf6 {[%clk 0:01:20]} 25. Rd1 {[%clk 0:02:03.6]} 25...
Ke8 {[%clk 0:01:14.2]} 26. Nf5 {[%clk 0:01:58]} 26... Kf8 {[%clk 0:01:08.8]} 27.
cxb4 {[%clk 0:01:47.8]} 27... cxb4 {[%clk 0:01:08]} 28. Rc2 {[%clk 0:01:47.4]}
28... Ba6 {[%clk 0:01:03.8]} 29. Rdc1 {[%clk 0:01:17.4]} 29... Rd8 {[%clk
0:00:56.9]} 30. Kf2 {[%clk 0:01:15.1]} 30... g6 {[%clk 0:00:52.7]} 31. Rc6
{[%clk 0:01:07.1]} 31... Bxb2 {[%clk 0:00:49.3]} 32. R1c2 {[%clk 0:00:58.9]}
32... Bc3 {[%clk 0:00:31.4]} 33. Rxa6 {[%clk 0:00:38.6]} 33... gxf5 {[%clk
0:00:32.6]} 34. Ra5 {[%clk 0:00:40]} 34... Rd1 {[%clk 0:00:26.3]} 35. Rxf5+
{[%clk 0:00:38.9]} 35... Ke7 {[%clk 0:00:27.6]} 36. Rh5 {[%clk 0:00:29.1]} 36...
a5 {[%clk 0:00:21]} 37. Re2 {[%clk 0:00:27.5]} 37... Bd4+ {[%clk 0:00:20.7]} 38.
Kg2 {[%clk 0:00:28.7]} 38... e3 {[%clk 0:00:20.1]} 39. Rxa5 {[%clk 0:00:26.8]}
39... Kd6 {[%clk 0:00:21.6]} 40. Rh5 {[%clk 0:00:25.8]} 40... h6 {[%clk
0:00:15.8]} 41. Kf3 {[%clk 0:00:26.2]} 41... Bc5 {[%clk 0:00:15.7]} 42. Rxh6+
{[%clk 0:00:23.6]} 42... Kd5 {[%clk 0:00:17.2]} 43. Rh5+ {[%clk 0:00:24.9]}
43... Kc4 {[%clk 0:00:18.9]} 44. Rc2+ {[%clk 0:00:24.9]} 44... Kd3 {[%clk
0:00:19.8]} 45. Rhxc5 {[%clk 0:00:19.7]} 1-0

[Event "*** Titled Tuesday Blitz"]
[Site "Chess.com"]
[Date "2020.02.04"]
[Round "7"]
[White "joshdaruca"]
[Black "platy3"]
[Result "1-0"]
[WhiteElo "2725"]
[BlackElo "2867"]
[TimeControl "180+2"]
[EndTime "14:32:55 PST"]
[Termination "joshdaruca won by resignation"]

1. e4 {[%clk 0:02:59.3]} 1... e5 {[%clk 0:03:00.2]} 2. Nf3 {[%clk 0:02:59.5]}
2... Nc6 {[%clk 0:03:00.6]} 3. Bb5 {[%clk 0:02:58.1]} 3... a6 {[%clk 0:03:01.1]}
4. Ba4 {[%clk 0:02:59.5]} 4... Nf6 {[%clk 0:03:02.3]} 5. O-O {[%clk 0:03:00.7]}
5... b5 {[%clk 0:03:03.4]} 6. Bb3 {[%clk 0:03:01.2]} 6... Bb7 {[%clk 0:03:05.3]}
7. Qe2 {[%clk 0:02:55.9]} 7... Be7 {[%clk 0:03:03.8]} 8. c3 {[%clk 0:02:54.8]}
8... O-O {[%clk 0:03:02.7]} 9. Rd1 {[%clk 0:02:55]} 9... d5 {[%clk 0:02:50.1]}
10. d4 {[%clk 0:02:40.5]} 10... exd4 {[%clk 0:02:44.4]} 11. e5 {[%clk
0:02:41.4]} 11... Ne4 {[%clk 0:02:44.3]} 12. cxd4 {[%clk 0:02:37.3]} 12... Qd7
{[%clk 0:02:43.4]} 13. Nc3 {[%clk 0:02:36.9]} 13... Nxc3 {[%clk 0:02:26.3]} 14.
bxc3 {[%clk 0:02:38.8]} 14... Nd8 {[%clk 0:02:27.3]} 15. Bc2 {[%clk 0:02:28.2]}
15... Ne6 {[%clk 0:02:28.2]} 16. Qd3 {[%clk 0:02:22.8]} 16... g6 {[%clk
0:02:28.7]} 17. h4 {[%clk 0:02:23.9]} 17... c5 {[%clk 0:02:28.4]} 18. h5 {[%clk
0:02:15.1]} 18... cxd4 {[%clk 0:02:27.7]} 19. cxd4 {[%clk 0:01:44.8]} 19... Rac8
{[%clk 0:02:27.6]} 20. Bh6 {[%clk 0:01:28.9]} 20... Rfe8 {[%clk 0:02:27.4]} 21.
Bd2 {[%clk 0:01:04.7]} 21... Rc4 {[%clk 0:02:05.6]} 22. Bb3 {[%clk 0:01:02.3]}
22... Rec8 {[%clk 0:01:59.6]} 23. a3 {[%clk 0:00:55.5]} 23... Ng7 {[%clk
0:01:52.9]} 24. hxg6 {[%clk 0:00:53.7]} 24... hxg6 {[%clk 0:01:53.6]} 25. Ba5
{[%clk 0:00:53]} 25... Qg4 {[%clk 0:01:51.4]} 26. Nh2 {[%clk 0:00:51.6]} 26...
Qh5 {[%clk 0:01:43.3]} 27. Qf3 {[%clk 0:00:50.9]} 27... Qxf3 {[%clk 0:01:01.4]}
28. Nxf3 {[%clk 0:00:52.8]} 28... Ne6 {[%clk 0:00:58.7]} 29. Bxc4 {[%clk
0:00:52.7]} 29... Rxc4 {[%clk 0:00:59.2]} 30. Bd2 {[%clk 0:00:40.8]} 30... Nxd4
{[%clk 0:00:48.4]} 31. Nxd4 {[%clk 0:00:39.6]} 31... Rxd4 {[%clk 0:00:50.3]} 32.
Bb4 {[%clk 0:00:40.1]} 32... Bxb4 {[%clk 0:00:29.2]} 33. Rxd4 {[%clk 0:00:39.1]}
33... Bc3 {[%clk 0:00:30]} 34. Rad1 {[%clk 0:00:38.5]} 34... Bxd4 {[%clk
0:00:31.5]} 35. Rxd4 {[%clk 0:00:40.4]} 35... Kf8 {[%clk 0:00:33.4]} 36. f4
{[%clk 0:00:33.1]} 36... Ke7 {[%clk 0:00:34.8]} 37. Kf2 {[%clk 0:00:35]} 37...
Kd7 {[%clk 0:00:36.3]} 38. Ke3 {[%clk 0:00:33.5]} 38... Kc6 {[%clk 0:00:37.8]}
39. Rd2 {[%clk 0:00:35.1]} 39... a5 {[%clk 0:00:37.4]} 40. Rc2+ {[%clk
0:00:34.4]} 40... Kb6 {[%clk 0:00:38.9]} 41. Kd4 {[%clk 0:00:32.8]} 41... b4
{[%clk 0:00:40.1]} 42. axb4 {[%clk 0:00:34.4]} 42... axb4 {[%clk 0:00:42]} 43.
g4 {[%clk 0:00:29.5]} 43... Bc6 {[%clk 0:00:36.7]} 44. f5 {[%clk 0:00:20.7]}
44... gxf5 {[%clk 0:00:38]} 45. gxf5 {[%clk 0:00:22.6]} 45... Kb5 {[%clk
0:00:39.7]} 46. f6 {[%clk 0:00:16.6]} 46... b3 {[%clk 0:00:40.2]} 47. Rc3 {[%clk
0:00:16.2]} 1-0

[Event "*** Titled Tuesday Blitz"]
[Site "Chess.com"]
[Date "2020.02.04"]
[Round "7"]
[White "Hasangatin_Ramil"]
[Black "semchik73"]
[Result "1-0"]
[WhiteElo "2535"]
[BlackElo "2306"]
[TimeControl "180+2"]
[EndTime "14:33:03 PST"]
[Termination "Hasangatin_Ramil won by checkmate"]

1. e4 {[%clk 0:02:06]} 1... Nf6 {[%clk 0:02:59.8]} 2. e5 {[%clk 0:02:06.2]} 2...
Nd5 {[%clk 0:03:00.6]} 3. d4 {[%clk 0:02:08.1]} 3... d6 {[%clk 0:03:01.4]} 4.
Nf3 {[%clk 0:02:09.4]} 4... Bg4 {[%clk 0:03:01.6]} 5. Be2 {[%clk 0:02:09.9]}
5... c6 {[%clk 0:03:03]} 6. Ng5 {[%clk 0:02:08.4]} 6... Bf5 {[%clk 0:02:58.9]}
7. exd6 {[%clk 0:02:03.3]} 7... exd6 {[%clk 0:02:59.3]} 8. Bd3 {[%clk
0:02:04.2]} 8... Bxd3 {[%clk 0:02:55.8]} 9. Qxd3 {[%clk 0:02:06.1]} 9... Be7
{[%clk 0:02:54.3]} 10. h4 {[%clk 0:02:04.7]} 10... h6 {[%clk 0:02:47.7]} 11. Nf3
{[%clk 0:02:04]} 11... Nd7 {[%clk 0:02:43.9]} 12. c4 {[%clk 0:02:03.9]} 12...
N5b6 {[%clk 0:02:40.8]} 13. Nc3 {[%clk 0:02:03.5]} 13... Nf6 {[%clk 0:02:40.4]}
14. O-O {[%clk 0:02:01.3]} 14... O-O {[%clk 0:02:38.5]} 15. Bf4 {[%clk
0:02:01.2]} 15... Re8 {[%clk 0:02:17.1]} 16. Rfe1 {[%clk 0:02:01.7]} 16... Bf8
{[%clk 0:02:18.1]} 17. b3 {[%clk 0:02:02.1]} 17... Qd7 {[%clk 0:02:17.9]} 18. d5
{[%clk 0:01:59.2]} 18... cxd5 {[%clk 0:02:17.3]} 19. cxd5 {[%clk 0:01:59.6]}
19... Qg4 {[%clk 0:02:16.9]} 20. Be3 {[%clk 0:01:57.9]} 20... Nbd7 {[%clk
0:02:02.3]} 21. Nb5 {[%clk 0:01:57.6]} 21... Ne5 {[%clk 0:01:57.4]} 22. Nxe5
{[%clk 0:01:54.5]} 22... Rxe5 {[%clk 0:01:58.7]} 23. Bd4 {[%clk 0:01:32.6]}
23... Rxd5 {[%clk 0:01:57.2]} 24. Rad1 {[%clk 0:01:33.5]} 24... Rc8 {[%clk
0:01:48]} 25. Nxa7 {[%clk 0:01:26.7]} 25... Ra8 {[%clk 0:01:46.5]} 26. Nb5
{[%clk 0:01:22.8]} 26... Rxa2 {[%clk 0:01:40.2]} 27. Nc3 {[%clk 0:01:21.8]}
27... Rxd4 {[%clk 0:01:35.4]} 28. Qxd4 {[%clk 0:01:21.7]} 28... Qxd4 {[%clk
0:01:35.6]} 29. Rxd4 {[%clk 0:01:21.8]} 29... Rb2 {[%clk 0:01:37.1]} 30. Rb4
{[%clk 0:01:20.5]} 30... d5 {[%clk 0:01:36.7]} 31. Rxb7 {[%clk 0:01:14.6]} 31...
d4 {[%clk 0:01:38]} 32. Ne4 {[%clk 0:01:10.6]} 32... Nd5 {[%clk 0:01:33.2]} 33.
Rb8 {[%clk 0:01:08.6]} 33... d3 {[%clk 0:01:31.6]} 34. Rd1 {[%clk 0:01:08.4]}
34... Nf4 {[%clk 0:01:25]} 35. g3 {[%clk 0:01:06]} 35... Ne2+ {[%clk 0:01:25.4]}
36. Kg2 {[%clk 0:01:05.4]} 36... f5 {[%clk 0:01:26.3]} 37. Nc5 {[%clk
0:01:01.9]} 37... d2 {[%clk 0:01:27]} 38. Ne6 {[%clk 0:00:34.6]} 38... Nc3
{[%clk 0:01:25.9]} 39. Rxf8+ {[%clk 0:00:35.3]} 39... Kh7 {[%clk 0:01:26.9]} 40.
Rxd2 {[%clk 0:00:35.7]} 40... Rxd2 {[%clk 0:01:27.5]} 41. h5 {[%clk 0:00:36.6]}
41... Ne4 {[%clk 0:01:24.6]} 42. Rb8 {[%clk 0:00:19.4]} 42... Rxf2+ {[%clk
0:01:24.8]} 43. Kg1 {[%clk 0:00:20.2]} 43... Rf3 {[%clk 0:01:23.9]} 44. Nf8+
{[%clk 0:00:20.8]} 44... Kg8 {[%clk 0:01:22.5]} 45. Ng6+ {[%clk 0:00:21.4]}
45... Kf7 {[%clk 0:01:23.4]} 46. Ne5+ {[%clk 0:00:21.3]} 46... Ke6 {[%clk
0:01:24.4]} 47. Nxf3 {[%clk 0:00:23.2]} 47... Nxg3 {[%clk 0:01:25.2]} 48. b4
{[%clk 0:00:21.1]} 48... Nxh5 {[%clk 0:01:26.1]} 49. b5 {[%clk 0:00:22.2]} 49...
Nf6 {[%clk 0:01:27.5]} 50. Rc8 {[%clk 0:00:21.5]} 50... Nd7 {[%clk 0:01:28.6]}
51. b6 {[%clk 0:00:21.2]} 51... Nxb6 {[%clk 0:01:27.3]} 52. Rc6+ {[%clk
0:00:21.8]} 52... Kf7 {[%clk 0:01:27.9]} 53. Rxb6 {[%clk 0:00:23.7]} 53... g5
{[%clk 0:01:29]} 54. Kg2 {[%clk 0:00:25.3]} 54... Kg7 {[%clk 0:01:29.6]} 55. Ne5
{[%clk 0:00:25.9]} 55... f4 {[%clk 0:01:30.2]} 56. Kf3 {[%clk 0:00:26.7]} 56...
h5 {[%clk 0:01:30.1]} 57. Rg6+ {[%clk 0:00:25.1]} 57... Kh7 {[%clk 0:01:31.5]}
58. Rxg5 {[%clk 0:00:26.4]} 58... Kh6 {[%clk 0:01:33]} 59. Rg6+ {[%clk
0:00:26.7]} 59... Kh7 {[%clk 0:01:34.3]} 60. Kxf4 {[%clk 0:00:27.9]} 60... h4
{[%clk 0:01:34.5]} 61. Kg5 {[%clk 0:00:29.8]} 61... h3 {[%clk 0:01:35.5]} 62.
Nd7 {[%clk 0:00:28.5]} 62... h2 {[%clk 0:01:35.9]} 63. Nf6+ {[%clk 0:00:30.4]}
63... Kh8 {[%clk 0:01:36.4]} 64. Rg8# {[%clk 0:00:32.3]} 1-0

[Event "*** Titled Tuesday Blitz"]
[Site "Chess.com"]
[Date "2020.02.04"]
[Round "7"]
[White "Shukh_Nikolay"]
[Black "Abund"]
[Result "1-0"]
[WhiteElo "2551"]
[BlackElo "2716"]
[TimeControl "180+2"]
[EndTime "14:33:08 PST"]
[Termination "Shukh_Nikolay won by checkmate"]

1. e4 {[%clk 0:03:00.3]} 1... c5 {[%clk 0:02:59.6]} 2. Nf3 {[%clk 0:03:00.6]}
2... Nc6 {[%clk 0:03:00.9]} 3. Bb5 {[%clk 0:03:00.9]} 3... g6 {[%clk 0:03:00.2]}
4. O-O {[%clk 0:03:01.1]} 4... Bg7 {[%clk 0:03:01.4]} 5. Re1 {[%clk 0:03:01.7]}
5... Nf6 {[%clk 0:03:02.2]} 6. Bxc6 {[%clk 0:03:01.8]} 6... dxc6 {[%clk
0:02:46.9]} 7. e5 {[%clk 0:03:00.9]} 7... Nd5 {[%clk 0:02:47.3]} 8. d3 {[%clk
0:02:59.4]} 8... h6 {[%clk 0:02:46.1]} 9. a4 {[%clk 0:02:58]} 9... a5 {[%clk
0:02:45.5]} 10. Nbd2 {[%clk 0:02:58]} 10... Be6 {[%clk 0:02:44.4]} 11. Ne4
{[%clk 0:02:54]} 11... b6 {[%clk 0:02:44.3]} 12. h3 {[%clk 0:02:54.6]} 12... Qc7
{[%clk 0:02:36.6]} 13. Qe2 {[%clk 0:02:47.9]} 13... g5 {[%clk 0:02:19.1]} 14.
Ng3 {[%clk 0:02:45.5]} 14... O-O-O {[%clk 0:02:11.9]} 15. Nh5 {[%clk 0:02:22.5]}
15... Rhg8 {[%clk 0:02:11.8]} 16. Nxg7 {[%clk 0:02:18.6]} 16... Rxg7 {[%clk
0:02:12.5]} 17. Nh2 {[%clk 0:02:15.9]} 17... Nf4 {[%clk 0:02:00.1]} 18. Bxf4
{[%clk 0:02:12.3]} 18... gxf4 {[%clk 0:02:00.7]} 19. Kh1 {[%clk 0:02:13.7]}
19... Rdg8 {[%clk 0:01:55.1]} 20. Rg1 {[%clk 0:02:14.2]} 20... Bd5 {[%clk
0:01:49.5]} 21. f3 {[%clk 0:02:03.5]} 21... Rg5 {[%clk 0:01:24.3]} 22. Rae1
{[%clk 0:02:03.2]} 22... h5 {[%clk 0:01:21.2]} 23. b3 {[%clk 0:01:54]} 23... Qd7
{[%clk 0:01:15.6]} 24. Qf2 {[%clk 0:01:05.2]} 24... Qf5 {[%clk 0:00:58.7]} 25.
Nf1 {[%clk 0:00:58.2]} 25... Kc7 {[%clk 0:00:47.2]} 26. Nd2 {[%clk 0:00:58.7]}
26... Qe6 {[%clk 0:00:25.3]} 27. c4 {[%clk 0:00:58.1]} 27... Rxg2 {[%clk
0:00:16.9]} 28. Rxg2 {[%clk 0:00:57.7]} 28... Qxh3+ {[%clk 0:00:15.7]} 29. Kg1
{[%clk 0:00:54.7]} 29... Rxg2+ {[%clk 0:00:11.3]} 30. Qxg2 {[%clk 0:00:55.5]}
30... Qh4 {[%clk 0:00:12.8]} 31. Qf2 {[%clk 0:00:52.2]} 31... Qg5+ {[%clk
0:00:14.1]} 32. Kh2 {[%clk 0:00:51.9]} 32... Be6 {[%clk 0:00:15.4]} 33. Ne4
{[%clk 0:00:48.3]} 33... Qxe5 {[%clk 0:00:15.6]} 34. Qh4 {[%clk 0:00:46.7]}
34... Qb2+ {[%clk 0:00:16]} 35. Kg1 {[%clk 0:00:45.5]} 35... Qd4+ {[%clk
0:00:12.9]} 36. Kh1 {[%clk 0:00:43.7]} 36... Kd7 {[%clk 0:00:09]} 37. Qxh5
{[%clk 0:00:19.4]} 37... Qxd3 {[%clk 0:00:08.4]} 38. Rg1 {[%clk 0:00:16.3]}
38... Qxb3 {[%clk 0:00:08.5]} 39. Ng5 {[%clk 0:00:13.6]} 39... Bxc4 {[%clk
0:00:06.3]} 40. Qg4+ {[%clk 0:00:14]} 40... e6 {[%clk 0:00:05.1]} 41. Qxf4
{[%clk 0:00:14.7]} 41... f5 {[%clk 0:00:06.2]} 42. Nf7 {[%clk 0:00:15]} 42...
Bd5 {[%clk 0:00:07.5]} 43. Qd6+ {[%clk 0:00:14.1]} 43... Ke8 {[%clk 0:00:06]}
44. Rg8+ {[%clk 0:00:15]} 44... Kxf7 {[%clk 0:00:07.2]} 45. Qf8# {[%clk
0:00:16.5]} 1-0

[Event "*** Titled Tuesday Blitz"]
[Site "Chess.com"]
[Date "2020.02.04"]
[Round "7"]
[White "jefferyx"]
[Black "Grandelicious"]
[Result "1-0"]
[WhiteElo "2933"]
[BlackElo "2703"]
[TimeControl "180+2"]
[EndTime "14:33:21 PST"]
[Termination "jefferyx won by resignation"]

1. d4 {[%clk 0:03:01.9]} 1... Nf6 {[%clk 0:02:59.4]} 2. c4 {[%clk 0:03:03.2]}
2... e6 {[%clk 0:03:00.5]} 3. Nc3 {[%clk 0:03:04.7]} 3... Bb4 {[%clk 0:03:00.1]}
4. Nf3 {[%clk 0:03:06.2]} 4... c5 {[%clk 0:02:57.4]} 5. g3 {[%clk 0:03:06.9]}
5... Nc6 {[%clk 0:02:56.9]} 6. Bg2 {[%clk 0:03:06.4]} 6... Ne4 {[%clk
0:02:57.4]} 7. Bd2 {[%clk 0:03:05.3]} 7... Nxd2 {[%clk 0:02:56.6]} 8. Qxd2
{[%clk 0:03:07.2]} 8... cxd4 {[%clk 0:02:58.5]} 9. Nxd4 {[%clk 0:03:08.7]} 9...
Ne5 {[%clk 0:02:48]} 10. b3 {[%clk 0:03:00.6]} 10... O-O {[%clk 0:02:42.4]} 11.
O-O {[%clk 0:03:01]} 11... a6 {[%clk 0:02:42.5]} 12. Nc2 {[%clk 0:02:50.9]}
12... Be7 {[%clk 0:02:42.1]} 13. Rfd1 {[%clk 0:02:49.2]} 13... Rb8 {[%clk
0:02:40.9]} 14. Qe3 {[%clk 0:02:42.6]} 14... Qc7 {[%clk 0:02:37]} 15. Rac1
{[%clk 0:02:40.9]} 15... Ng4 {[%clk 0:02:21.9]} 16. Qd4 {[%clk 0:02:35.2]} 16...
Nf6 {[%clk 0:02:11.3]} 17. b4 {[%clk 0:02:20.4]} 17... b6 {[%clk 0:02:06]} 18.
e4 {[%clk 0:02:16.8]} 18... d6 {[%clk 0:02:00.2]} 19. a3 {[%clk 0:02:16]} 19...
Bb7 {[%clk 0:01:57]} 20. Ne3 {[%clk 0:02:17.3]} 20... Rfd8 {[%clk 0:01:53.8]}
21. Qd2 {[%clk 0:02:08.4]} 21... Rbc8 {[%clk 0:01:53]} 22. f4 {[%clk 0:02:04.1]}
22... Qb8 {[%clk 0:01:48.8]} 23. f5 {[%clk 0:02:00.4]} 23... Re8 {[%clk
0:01:44]} 24. fxe6 {[%clk 0:01:40.3]} 24... fxe6 {[%clk 0:01:45.9]} 25. Qe1
{[%clk 0:01:10.4]} 25... Qa8 {[%clk 0:01:32.8]} 26. Bh3 {[%clk 0:00:56.7]} 26...
Bf8 {[%clk 0:01:33.2]} 27. Ng2 {[%clk 0:00:57.4]} 27... Nxe4 {[%clk 0:00:38.9]}
28. Nxe4 {[%clk 0:00:57.8]} 28... Bxe4 {[%clk 0:00:40.8]} 29. Nf4 {[%clk
0:00:59.7]} 29... Bf5 {[%clk 0:00:41.1]} 30. Bxf5 {[%clk 0:00:45]} 30... exf5
{[%clk 0:00:43]} 31. Qf2 {[%clk 0:00:46.9]} 31... b5 {[%clk 0:00:38.1]} 32. Nd5
{[%clk 0:00:44.8]} 32... Rxc4 {[%clk 0:00:32]} 33. Rxc4 {[%clk 0:00:45.2]} 33...
bxc4 {[%clk 0:00:31.5]} 34. Nc7 {[%clk 0:00:46.3]} 34... Qe4 {[%clk 0:00:28.9]}
35. Nxe8 {[%clk 0:00:46.9]} 35... Qxe8 {[%clk 0:00:30.8]} 36. Qxf5 {[%clk
0:00:46.7]} 36... Qe3+ {[%clk 0:00:23.4]} 37. Kh1 {[%clk 0:00:47.9]} 37... c3
{[%clk 0:00:22.1]} 38. Rf1 {[%clk 0:00:48.5]} 38... Qe8 {[%clk 0:00:16.6]} 39.
Qd5+ {[%clk 0:00:48.5]} 39... Kh8 {[%clk 0:00:18]} 40. Qf3 {[%clk 0:00:49.3]}
40... Be7 {[%clk 0:00:13.8]} 41. Qxc3 {[%clk 0:00:50.4]} 41... h6 {[%clk
0:00:13.9]} 42. Rc1 {[%clk 0:00:43.9]} 42... Qh5 {[%clk 0:00:12.1]} 43. Qd3
{[%clk 0:00:41.8]} 43... Kg8 {[%clk 0:00:06.2]} 44. Qe4 {[%clk 0:00:23.1]} 44...
Qf7 {[%clk 0:00:03.7]} 45. Re1 {[%clk 0:00:23.6]} 45... Bf6 {[%clk 0:00:03.7]}
46. Qe8+ {[%clk 0:00:21]} 46... Qxe8 {[%clk 0:00:04]} 47. Rxe8+ {[%clk
0:00:22.9]} 47... Kf7 {[%clk 0:00:05.9]} 48. Ra8 {[%clk 0:00:24.6]} 1-0